Cogmind - Beta 10.2 @@@ ROGUE MODE // 2021.09.28 @ 02:17:02 Player: Winged Result: Destroyed by G-47 Trooper with Particle Gun Performance ------------- Evolutions (2) 1000 Regions Visited (6) 1200 Robots Destroyed (14) 70 Value Destroyed (415) 415 Prototype IDs (1) 20 Alien Tech Used (0) 0 Bonus (0) 0 TOTAL SCORE: 2705 Bonus ------- None Cogmind --------- Core Integrity 0/550 Matter 231/300 Energy 219/265 System Corruption 0% Temperature Cool (11) Movement Treading (160) Location -8/Storage Parts ------- > --- POWER (1) -------- Improved Ion Engine > --- PROPULSION (4) --- Light Treads Light Treads > --- UTILITY (3) ------ (None) > --- WEAPON (3) ------- Flak Cannon > --- INVENTORY (4) ---- Improved Sensor Array Recalibrator Peak State ------------ > --- POWER ------------ Light Ion Engine > --- PROPULSION ------- Aluminum Leg Aluminum Leg Wheel > --- UTILITY ---------- Heat Sink Experimental Sensor Array Improved Terrain Scanner > --- WEAPON ----------- EM Pulse Gun Light Assault Rifle Assault Cannon > --- INVENTORY -------- Grenade Launcher Mining Laser [Rating: 18] Favorites ----------- Power Light Ion Engine Engine Light Ion Engine Propulsion Aluminum Leg Treads Light Treads Leg Aluminum Leg Wheel Wheel Utility Heat Sink Device Heat Sink Protection Core Shielding Weapon Grenade Launcher Energy Gun EM Pulse Gun Ballistic Gun Light Assault Rifle Ballistic Cannon Assault Cannon Launcher Grenade Launcher Special Weapon Mining Laser Build | -11 -10 -10 -10 -9 -8 -8 ------- Run | Scr Mat Min Exi Min Mat Sto Slots Evolved 4 | . . . . . 4 . Power . | . . . . . . . Propulsion 2 | . . . . . 2 . Utility 1 | . . . . . 1 . Weapon 1 | . . . . . 1 . Parts Attached 31 | 11 1 . . 1 11 7 Power 4 | 2 . . . . 1 1 Engine 4 | 2 . . . . 1 1 Core . | . . . . . . . Reactor . | . . . . . . . Propulsion 10 | 3 . . . . 4 3 Treads 2 | . . . . . . 2 Leg 4 | 3 . . . . . 1 Wheel 4 | . . . . . 4 . Hover . | . . . . . . . Flight . | . . . . . . . Utility 6 | 2 . . . 1 3 . Device 5 | 2 . . . 1 2 . Storage . | . . . . . . . Processor . | . . . . . . . Hackware . | . . . . . . . Protection 1 | . . . . . 1 . Artifact . | . . . . . . . Weapon 11 | 4 1 . . . 3 3 Energy Gun 2 | 1 . . . . . 1 Energy Cannon . | . . . . . . . Ballistic Gun 3 | 2 . . . . 1 . Ballistic Cannon 2 | . . . . . 1 1 Launcher 3 | . 1 . . . 1 1 Special Weapon 1 | 1 . . . . . . Impact Weapon . | . . . . . . . Slashing Weapon . | . . . . . . . Piercing Weapon . | . . . . . . . Special Melee Weapon . | . . . . . . . Unidentified Prototypes 1 | . . . . 1 . . Parts Lost 14 | . . . . . 3 11 Power 2 | . . . . . 1 1 Propulsion 4 | . . . . . . 4 Utility 3 | . . . . . . 3 Weapon 5 | . . . . . 2 3 Highest Loss Streak 10 | . . . . . 2 10 Average Slot Usage (%) 82 | . 100 100 100 100 75 66 Engine 9 | . 14 14 14 14 4 6 Leg 13 | . 28 28 28 28 6 . Wheel 10 | . . . . . 18 18 Device 20 | . 28 28 28 28 18 12 Protection 2 | . . . . . 2 6 Energy Gun 8 | . 14 14 14 14 1 6 Ballistic Gun 1 | . 10 . . . 4 . Ballistic Cannon 4 | . . . . . 7 7 Launcher 9 | . 3 14 14 14 8 6 Naked Turns 28 | . . . . . . 28 Heaviest Build 18 | 8 10 10 10 10 16 18 Greatest Support 40 | 20 20 20 20 20 36 40 Greatest Overweight (x) 4 | . . . . . 1 4 Average Overweight (x) . | . . . . . . . Largest Inventory Capacity 4 | 4 4 4 4 4 4 4 Average Capacity 4 | 4 4 4 4 4 4 4 Most Carried 4 | 4 4 4 4 4 4 3 Average Carried 2 | 2 3 4 4 4 2 2 Final Capacity 4 | 4 4 4 4 4 4 4 Final Carried 4 | 4 4 4 4 4 3 2 Class Distribution -------------------- 68% | Mutant 28% | Scavenger-Mutant Dominant Class ---------------- Mutant | -10/Materials Mutant | -10/Mines Mutant | -10/Exiles Mutant | -9/Mines Mutant | -8/Materials Scavenger-Mutant | -8/Storage Resources | -11 -10 -10 -10 -9 -8 -8 ----------- Run | Scr Mat Min Exi Min Mat Sto Matter Collected 604 | 259 . . . 111 161 73 Remotely . | . . . . . . . Salvage Created 525 | 72 . . . . 279 174 Parts 31 | 5 . . . . 16 10 Haulers Intercepted . | . . . . . . . Recyclers Shooed . | . . . . . . . Parts Field Recycled . | . . . . . . . Retrieved Matter . | . . . . . . . Parts Self-Destructed . | . . . . . . . Prevented . | . . . . . . . Kills | -11 -10 -10 -10 -9 -8 -8 ------- Run | Scr Mat Min Exi Min Mat Sto Combat Hostiles Destroyed 8 | 1 . . . . 2 5 Guns 2 | 1 . . . . 1 . Cannons 5 | . . . . . . 5 AOE 1 | . . . . . 1 . Classes Destroyed 6 | 2 . . . . 3 1 Tunneler 3 | 1 . . . . 2 . Recycler 2 | . . . . . 2 . Mechanic 1 | . . . . . 1 . Grunt 5 | 1 . . . . 1 3 Duelist 1 | . . . . . 1 . Sentry 2 | . . . . . . 2 Best Kill Streak 7 | 2 . . . . 7 4 Combat Bots Only 4 | 1 . . . . 1 4 Max Kills in Single Turn 2 | 1 . . . . 2 2 Gunslinging . | . . . . . . . Exploded 1 | . . . . . 1 . Melee . | . . . . . . . Uniques/NPCs Destroyed . | . . . . . . . Combat | -11 -10 -10 -10 -9 -8 -8 -------- Run | Scr Mat Min Exi Min Mat Sto Damage Taken 1673 | 99 . . . . 414 1160 Core 557 | . . . . . 35 522 Absorbed by Shields . | . . . . . . . Core Remaining (%) 100 | 100 . . . 100 . . Volleys Fired 40 | 10 . . . . 16 14 Largest 3 | 2 . . . . 3 3 Hottest 114 | 40 . . . . 104 114 Shots Fired 73 | 20 . . . . 32 21 Gun 44 | 20 . . . . 19 5 Cannon 24 | . . . . . 10 14 Launcher 5 | . . . . . 3 2 Special . | . . . . . . . Kinetic 60 | 20 . . . . 26 14 Thermal . | . . . . . . . Explosive 5 | . . . . . 3 2 Electromagnetic 8 | . . . . . 3 5 Robot Hit Streak 9 | 9 . . . . 7 7 Robot Miss Streak 3 | 3 . . . . 2 2 Penetration Max . | . . . . . . . Secondary Targets . | . . . . . . . Shots Hit Robots 51 | 14 . . . . 22 15 Core Hits 36 | 3 . . . . 14 19 Critical Hits 1 | . . . . . 1 . Critical Kills . | . . . . . . . Critical Parts Destroyed 1 | . . . . . 1 . Melee Attacks . | . . . . . . . Impact . | . . . . . . . Slashing . | . . . . . . . Piercing . | . . . . . . . Sneak Attacks . | . . . . . . . Combat Hostiles . | . . . . . . . Follow-up Attacks . | . . . . . . . Damage Inflicted 1146 | 150 . . . . 513 483 Guns 314 | 150 . . . . 124 40 Cannons 352 | . . . . . 98 254 Explosions 480 | . . . . . 291 189 Melee . | . . . . . . . Ramming . | . . . . . . . Kinetic 591 | 150 . . . . 187 254 Thermal 108 | . . . . . 108 . Explosive 372 | . . . . . 183 189 Electromagnetic 75 | . . . . . 35 40 Impact . | . . . . . . . Slashing . | . . . . . . . Piercing . | . . . . . . . Highest Corruption . | . . . . . . . Average Corruption . | . . . . . . . Corruption Purged . | . . . . . . . Overload Shots . | . . . . . . . Overflow Damage 36 | . . . . . 32 4 Projectiles . | . . . . . . . Explosions 36 | . . . . . 32 4 Melee . | . . . . . . . Knockbacks 7 | . . . . . 2 5 Impact . | . . . . . . . Kinetic 6 | . . . . . 2 4 Secondary 1 | . . . . . . 1 Self-Inflicted Damage 80 | . . . . . 56 24 Shots 3 | . . . . . 2 1 Rammed . | . . . . . . . Targets Rammed . | . . . . . . . Kicked . | . . . . . . . Crushed . | . . . . . . . Highest Temperature 171 | 18 . . . . 27 171 Average Temperature 63 | 8 . . . . 17 89 Received Heat Transfer 792 | 54 . . . . 162 576 Siege Activations . | . . . . . . . Robots Corrupted . | . . . . . . . Combat Hostiles . | . . . . . . . Parts Fried . | . . . . . . . Impact Corruptions . | . . . . . . . Robots Melted . | . . . . . . . Combat Hostiles . | . . . . . . . Parts Melted . | . . . . . . . Heat Transferred 150 | . . . . . 150 . Parts Sabotaged . | . . . . . . . Parts Stolen . | . . . . . . . Parts Stripped . | . . . . . . . Power Chain Reactions 1 | . . . . . 1 . Missiles Intercepted . | . . . . . . . Alert | -11 -10 -10 -10 -9 -8 -8 ------- Run | Scr Mat Min Exi Min Mat Sto Peak Influence 248 | 25 16 6 . . 158 248 Initial 66 | . 16 6 . . . 66 Average 50 | 8 16 6 . . 81 101 Maximum Alert Level 1 | . . . . . . 1 Low Security (%) 97 | 100 100 100 . 100 100 93 Level 1 2 | . . . . . . 6 Level 2 . | . . . . . . . Level 3 . | . . . . . . . Level 4 . | . . . . . . . Level 5 . | . . . . . . . High Security . | . . . . . . . Max Security . | . . . . . . . Squads Dispatched 6 | . . . . . 1 5 Investigation 1 | . . . . . . 1 Extermination . | . . . . . . . Reinforcement 1 | . . . . . . 1 Assault . | . . . . . . . Garrison 4 | . . . . . 1 3 Intercept . | . . . . . . . Construction Impeded . | . . . . . . . Haulers Reinforced . | . . . . . . . Stealth | -11 -10 -10 -10 -9 -8 -8 --------- Run | Scr Mat Min Exi Min Mat Sto Distress Signals 1 | . . . . . . 1 Communications Jammed . | . . . . . . . Distress Signals . | . . . . . . . Times Spotted 24 | 1 . . . . 6 17 Peak Tracking Total 9 | 1 . . . . 3 9 Tactical Retreats 4 | . . . . . 2 2 Traps | -11 -10 -10 -10 -9 -8 -8 ------- Run | Scr Mat Min Exi Min Mat Sto Traps Triggered . | . . . . . . . Indirectly . | . . . . . . . Trap Hack Attempts . | . . . . . . . Triggered . | . . . . . . . Disarmed . | . . . . . . . Reprogrammed . | . . . . . . . Reused . | . . . . . . . Traps Extracted . | . . . . . . . Installed . | . . . . . . . Triggered . | . . . . . . . Machines | -11 -10 -10 -10 -9 -8 -8 ---------- Run | Scr Mat Min Exi Min Mat Sto Machines Disabled 1 | . . . . . 1 . Max in Single Turn 1 | . . . . . 1 . Machines Sabotaged . | . . . . . . . Garrisons Compromised . | . . . . . . . Overloaded Fab Kills . | . . . . . . . Fab Network Shutdowns . | . . . . . . . Hacking | -11 -10 -10 -10 -9 -8 -8 --------- Run | Scr Mat Min Exi Min Mat Sto Machines Accessed 2 | . . . . . 1 1 Terminals 1 | . . . . . . 1 Fabricators . | . . . . . . . Repair Stations . | . . . . . . . Recycling Units . | . . . . . . . Scanalyzers 1 | . . . . . 1 . Garrison Access . | . . . . . . . Total Hacks 5 | . . . . . 2 3 Successful 5 | . . . . . 2 3 Failed . | . . . . . . . Catastrophic . | . . . . . . . Database Lockouts . | . . . . . . . Manual . | . . . . . . . Terminals 3 | . . . . . . 3 Fabricators . | . . . . . . . Repair Stations . | . . . . . . . Recycling Units . | . . . . . . . Scanalyzers 2 | . . . . . 2 . Garrison Access . | . . . . . . . Terminal Hacks 3 | . . . . . . 3 Record 3 | . . . . . . 3 Fabricator Hacks . | . . . . . . . Repair Station Hacks . | . . . . . . . Recycling Unit Hacks . | . . . . . . . Scanalyzer 2 | . . . . . 2 . Insert Component 1 | . . . . . 1 . Analyze 1 | . . . . . 1 . Garrison Access Hacks . | . . . . . . . Unauthorized Hacks . | . . . . . . . Terminals . | . . . . . . . Fabricators . | . . . . . . . Repair Stations . | . . . . . . . Recycling Units . | . . . . . . . Scanalyzers . | . . . . . . . Garrison Access . | . . . . . . . Data Cores Recovered . | . . . . . . . Used . | . . . . . . . Hacking Detections 1 | . . . . . . 1 Full Trace Events 1 | . . . . . . 1 Feedback Events . | . . . . . . . Feedback Blocked . | . . . . . . . Robot Schematics Acquired . | . . . . . . . Robots Built . | . . . . . . . Matter . | . . . . . . . Time . | . . . . . . . Total Robot Build Rating . | . . . . . . . Part Schematics Acquired 1 | . . . . . 1 . Parts Built . | . . . . . . . Matter . | . . . . . . . Time . | . . . . . . . Total Part Build Rating . | . . . . . . . Parts Repaired . | . . . . . . . Time . | . . . . . . . Parts Recycled . | . . . . . . . Recycled Matter . | . . . . . . . Retrieved Matter . | . . . . . . . Retrieved Components . | . . . . . . . Parts Scanalyzed 1 | . . . . . 1 . Part Schematics Acquired 1 | . . . . . 1 . Parts Damaged . | . . . . . . . Bothacking | -11 -10 -10 -10 -9 -8 -8 ------------ Run | Scr Mat Min Exi Min Mat Sto Used RIF Installer . | . . . . . . . Robots Hacked . | . . . . . . . Non-combat . | . . . . . . . Combat . | . . . . . . . Robot Hacks Applied . | . . . . . . . Relay Couplers Released . | . . . . . . . Robots Rewired . | . . . . . . . Allies Hacked . | . . . . . . . Hacks Repelled . | . . . . . . . Allies | -11 -10 -10 -10 -9 -8 -8 -------- Run | Scr Mat Min Exi Min Mat Sto Total Allies 2 | . . 2 . . . . Largest Group 2 | . . 2 . . . . Highest-Rated Group 41 | . . 41 . . . . Highest-Rated Ally 31 | . . 31 . . . . Total Orders . | . . . . . . . Ally Attacks . | . . . . . . . Total Damage . | . . . . . . . Kills . | . . . . . . . Allies Corrupted . | . . . . . . . Allies Melted . | . . . . . . . Intel | -11 -10 -10 -10 -9 -8 -8 ------- Run | Scr Mat Min Exi Min Mat Sto Robot Analysis Total . | . . . . . . . Derelict Logs Recovered 1 | . . . . 1 . . Drone Launches . | . . . . . . . Drone Recoveries . | . . . . . . . Exploration | -11 -10 -10 -10 -9 -8 -8 ------------- Run | Scr Mat Min Exi Min Mat Sto Turns Passed 1156 | 142 44 87 38 274 195 376 Spaces Moved 790 | 82 35 73 32 209 135 224 Core 76 | 14 . . . . . 62 Treads 7 | . . . . . . 7 Legs 472 | 68 35 73 32 209 28 27 Wheels 235 | . . . . . 107 128 Hover . | . . . . . . . Flight . | . . . . . . . Fastest Speed 50 | 50 120 120 120 120 80 50 Average Speed 104 | 108 120 120 120 120 94 84 Slowest Speed 250 | 120 120 120 120 120 150 250 Overloaded Moves . | . . . . . . . Propulsion Burnouts . | . . . . . . . Robots Hopped . | . . . . . . . Cave-ins Triggered . | . . . . . . . Exploration Rate (%) 20 | 7 10 25 8 44 12 35 Regions Visited 6 Branch Regions 4 Pre-discovered Areas . | . . . . . . . Known Exits Taken . | . . . . . . . Unknown Exits Taken 6 | 1 1 1 1 1 1 . Scrap Searched 1 | . . . . 1 . . Spaces Dug . | . . . . . . . Terrain Destroyed 37 | . . . . . 29 8 Melee . | . . . . . . . Projectile 5 | . . . . . 3 2 AOE 32 | . . . . . 26 6 Terrain Rammed . | . . . . . . . Walls Destroyed . | . . . . . . . Machines Disabled . | . . . . . . . Actions | -11 -10 -10 -10 -9 -8 -8 --------- Run | Scr Mat Min Exi Min Mat Sto Total 1060 | 117 37 72 31 232 179 392 Wait 164 | . . . . 21 2 141 Move 784 | 81 34 72 31 208 134 224 Hop . | . . . . . . . Pick Up 29 | 12 1 . . 1 10 5 Fast Attach 1 | 1 . . . . . . Attach 24 | 8 . . . . 9 7 Detach 3 | 1 . . . . 1 1 Swap 6 | 2 1 . . 1 2 . Drop 9 | 2 1 . . 1 5 . Fire 40 | 10 . . . . 16 14 Melee . | . . . . . . . Ram . | . . . . . . . Kick . | . . . . . . . Crush . | . . . . . . . Escape Stasis . | . . . . . . . Rewire . | . . . . . . . Trap . | . . . . . . . Miscellaneous . | . . . . . . . Route ------- -11/Scrapyard -10/Materials -10/Mines -10/Exiles -9/Mines -8/Materials -8/Storage History --------- Turn | Location | Event 2 | -11/Scrapyard | Met Revision 17 69 | -11/Scrapyard | Discovered new exit (range 8) 143 | -11/Scrapyard | Entered Materials 176 | -10/Materials | Discovered new exit (range 9) 187 | -10/Materials | Entered Mines 198 | -10/Mines | Met a Derelict bent on vengeance 269 | -10/Mines | Deemed a non-threat by the Exiles lab entrance 269 | -10/Mines | Discovered new exit (range 5) 274 | -10/Mines | Entered Exiles 295 | -10/Exiles | Discovered new exit (range 15) 308 | -10/Exiles | Build established: Mutant 312 | -10/Exiles | Entered Mines 351 | -9/Mines | Learned Materials trap positions 366 | -9/Mines | Found a damaged Exp. Sensor Array with a note attached 369 | -9/Mines | Found Prototype Device 370 | -9/Mines | Identified Exp. Sensor Array 575 | -9/Mines | Discovered new exit (range 11) 586 | -9/Mines | Entered Materials 586 | -8/Materials | Evolved 4 slots: Propulsion x2, Utility x1, Weapon x1 587 | -8/Materials | Loaded intel: 15 trap records 662 | -8/Materials | Garrison activated, responded to threat 720 | -8/Materials | Discovered new exit (range 5) 781 | -8/Materials | Entered Storage 1030 | -8/Storage | Build established: Scavenger-Mutant 1062 | -8/Storage | Core integrity fell below 50% 1089 | -8/Storage | Lost 10 parts (1p3n3u3w) 1129 | -8/Storage | Core integrity fell below 20% 1157 | -8/Storage | Destroyed by G-47 Trooper with Particle Gun Last Messages --------------- Assault Cannon destroyed. Acquired Aluminum Leg. Ion Engine destroyed. The unstable cave ceiling collapses. K-01 Serf cleans the Terminal. Terminal unresponsive. Acquired Flak Cannon. Y-45 Defender destroyed. G-47 Trooper knocked back. Aluminum Leg destroyed. G-47 Trooper knocked back. G-47 Trooper destroyed. Y-45 Defender destroyed. G-47 Trooper destroyed. Acquired Imp. Ion Engine. Acquired Lgt. Treads. Acquired 49 matter. Acquired Lgt. Treads. Acquired 24 matter. [Achievement: First Step to Greatness] Map ----- +----------------------------------------------------+ | | | | | | | | | | | | | | | | | | | | | | | | | | | | | | | | | | | | | | | | | | | | | ?????????????????###########?????????????????????? | | ????????????????## = T #?????????????????????? | | ????????????????# g g![! #?????????????????????? | | ????????????????## Y g @ ##????????????????????? | | ?????????????????# """Y""" """#??????????????????? | | ?????????????????# """ """ R"#??????????????????? | | ?????????????????# """ """ """#??????????????????? | | ?????????????????#! ####??????????????????? | | ?????????????????#% #?????????????????????? | | ??????????????"####+########?????????????????????? | | ??????????????" ###########????????????????? | | ??????????????" / """ """ #?????????????? | | ??????????????"#T### # """ """ #?????????????? | | ???????????????##??# # """ """ #?????????????? | | ???????????????????# + #?????????????? | | ???????????????????# # #?????????????? | | ??????????????????## ########+#####?????????????? | | ?????????????###### ##### #????????????????? | | ?????????????# "" #????????????????? | | ?????????????+ T !#????????????????? | | ?????????????# ## ##### #????????????????? | | ?????????????# ?## ##??????###????????????????? | | ?????????????# ??# #??????????????????????????? | | ?????###?????# #?# #??????????????????????????? | | ######"#?????# #?# #??????????????????????????? | | # ###### #?# #??????????????????????????? | | # +% #?# #??????????????????????????? | | # # #?# #??????????????????????????? | +----------------------------------------------------+ Best States ------------- Heat Dissipation 41 Energy Generation 12 Energy Capacity 265 Matter Stores 300 Matter Capacity 300 Sight Range 16 Robot Scan Range 30 Terrain Scan Range 16 Terrain Scan Density 10 Core Shielding 20 Evasion (%) 50 Recoil Reduction 2 Item Schematics ----------------- Recalibrator | -8/Materials | Scanalyzed Robot Schematics ------------------ None Fabricated ------------ Nothing Alien Tech Used ----------------- None Achievements -------------- First Step to Greatness One Hack Too Far Risk Taker Tourist Troublemaker Uninvited Guest Challenges ------------ None Game ------ Seed MissileSystemSplitter Manual? 0 Play Time 00:50:52 Cumulative 1.6 hours Start 2021.09.26 @ 12:42:55 End 2021.09.28 @ 02:17:02 Sessions 3 Manual Loads 0 Difficulty Rogue Special Mode None Game No. 1 Rogue 1 Adventurer 0 Explorer 0 Win Type - Total 0 Types 0/0/0/0/0/0/0/0/0 Lore% 0 Gallery% 2 Achievement% 2 Wizard Run 0 Options --------- ASCII 0 Keyboard 0 Movement Mouse Keybinds 0 Fullscreen 2 Font 18/X11 Map View 76x50 Tactical HUD 0 Map Filters NONE Filters NONE Steam 1 RUN: 67229dd8-1189-4716-b3dc-da149467f4e1